[Event "*** Titled Tuesday 3|2 Blitz"]
[Site "Chess.com"]
[Date "2016.06.07"]
[Round "1"]
[White "biostatistician"]
[Black "Fandorine"]
[Result "0-1"]
[WhiteElo "2286"]
[BlackElo "2579"]
[TimeControl "180+2"]
[EndTime "11:07:30 PDT"]
[Termination "Fandorine won by checkmate"]

1. d4 {[%clk 0:03:01.9]} 1... Nf6 {[%clk 0:02:59.4]} 2. Nf3 {[%clk 0:03:03.8]}
2... g6 {[%clk 0:03:00.3]} 3. c4 {[%clk 0:03:05.4]} 3... Bg7 {[%clk 0:03:01.9]}
4. Nc3 {[%clk 0:03:07.3]} 4... O-O {[%clk 0:03:03.6]} 5. e4 {[%clk 0:03:07.9]}
5... d6 {[%clk 0:03:05.1]} 6. Be2 {[%clk 0:03:09.8]} 6... Nbd7 {[%clk
0:03:06.1]} 7. O-O {[%clk 0:03:10.1]} 7... e5 {[%clk 0:03:07.6]} 8. Be3 {[%clk
0:03:11.7]} 8... c6 {[%clk 0:03:08.4]} 9. d5 {[%clk 0:03:12.2]} 9... c5 {[%clk
0:03:09.9]} 10. Ne1 {[%clk 0:03:12.7]} 10... Kh8 {[%clk 0:03:11.1]} 11. g4
{[%clk 0:03:12.6]} 11... Ng8 {[%clk 0:03:09.9]} 12. Kh1 {[%clk 0:03:12.5]} 12...
Bh6 {[%clk 0:03:06.4]} 13. Qd2 {[%clk 0:03:03.7]} 13... Bxe3 {[%clk 0:03:07.1]}
14. Qxe3 {[%clk 0:03:05.6]} 14... f5 {[%clk 0:03:00.4]} 15. gxf5 {[%clk
0:03:06.1]} 15... gxf5 {[%clk 0:03:02.3]} 16. exf5 {[%clk 0:03:07.6]} 16... Ne7
{[%clk 0:03:03.5]} 17. Bd3 {[%clk 0:03:00.7]} 17... Nf6 {[%clk 0:03:04.2]} 18.
Rg1 {[%clk 0:02:53.1]} 18... Nxf5 {[%clk 0:02:56.4]} 19. Qd2 {[%clk 0:01:48.8]}
19... Qe7 {[%clk 0:02:46.5]} 20. Nf3 {[%clk 0:01:46.3]} 20... Bd7 {[%clk
0:02:42.2]} 21. Ng5 {[%clk 0:01:45.5]} 21... Nd4 {[%clk 0:02:40.6]} 22. Rg2
{[%clk 0:01:30]} 22... Ng4 {[%clk 0:01:46.5]} 23. Rag1 {[%clk 0:01:24.5]} 23...
Rf4 {[%clk 0:01:46.9]} 24. Nxh7 {[%clk 0:01:08.9]} 24... Nf3 {[%clk 0:01:37.6]}
25. Qc1 {[%clk 0:01:02.5]} 25... Nxg1 {[%clk 0:01:38.4]} 26. Qxg1 {[%clk
0:01:03.1]} 26... Qh4 {[%clk 0:01:34]} 27. Ne4 {[%clk 0:00:55.5]} 27... Rg8
{[%clk 0:01:29.4]} 28. Nhg5 {[%clk 0:00:39]} 28... Rxg5 {[%clk 0:01:10]} 29.
Nxg5 {[%clk 0:00:40.9]} 29... Nxf2+ {[%clk 0:01:04.8]} 30. Rxf2 {[%clk
0:00:39.2]} 30... Qxf2 {[%clk 0:01:06.7]} 31. Qd1 {[%clk 0:00:23.9]} 31... Bg4
{[%clk 0:01:03.5]} 32. Qa4 {[%clk 0:00:12.4]} 32... Bf3+ {[%clk 0:01:00.8]} 33.
Nxf3 {[%clk 0:00:12.2]} 33... Qxf3+ {[%clk 0:01:02.7]} 34. Kg1 {[%clk
0:00:13.7]} 34... Rg4# {[%clk 0:01:04.4]} 0-1

[Event "*** Titled Tuesday 3|2 Blitz"]
[Site "Chess.com"]
[Date "2016.06.07"]
[Round "1"]
[White "AlexanderL"]
[Black "INbetweenMOVE"]
[Result "1-0"]
[WhiteElo "2580"]
[BlackElo "2279"]
[TimeControl "180+2"]
[EndTime "11:07:35 PDT"]
[Termination "AlexanderL won by resignation"]

1. d4 {[%clk 0:03:00.7]} 1... Nf6 {[%clk 0:02:59.4]} 2. c4 {[%clk 0:03:00.6]}
2... g6 {[%clk 0:02:58.8]} 3. Nc3 {[%clk 0:02:58.8]} 3... d5 {[%clk 0:02:59.2]}
4. Bf4 {[%clk 0:02:58.8]} 4... Bg7 {[%clk 0:02:59.7]} 5. e3 {[%clk 0:02:58.8]}
5... O-O {[%clk 0:03:00.7]} 6. Rc1 {[%clk 0:02:57.9]} 6... c5 {[%clk 0:02:52.5]}
7. dxc5 {[%clk 0:02:52.6]} 7... dxc4 {[%clk 0:02:31.9]} 8. Qxd8 {[%clk
0:02:51.7]} 8... Rxd8 {[%clk 0:02:33.8]} 9. Bxc4 {[%clk 0:02:52.8]} 9... Na6
{[%clk 0:02:32.2]} 10. Bxa6 {[%clk 0:02:49]} 10... bxa6 {[%clk 0:02:34.1]} 11.
Nf3 {[%clk 0:02:48.5]} 11... Bb7 {[%clk 0:02:35.2]} 12. Be5 {[%clk 0:02:47.5]}
12... Rac8 {[%clk 0:02:34.8]} 13. Bd4 {[%clk 0:02:40.2]} 13... a5 {[%clk
0:02:29]} 14. O-O {[%clk 0:02:35.4]} 14... Nd7 {[%clk 0:02:24.2]} 15. Nb5 {[%clk
0:02:24.1]} 15... e5 {[%clk 0:02:18.7]} 16. Bc3 {[%clk 0:01:57.6]} 16... Rxc5
{[%clk 0:01:46.9]} 17. Bxa5 {[%clk 0:01:58]} 17... Rdc8 {[%clk 0:01:41.2]} 18.
Rxc5 {[%clk 0:01:59]} 18... Rxc5 {[%clk 0:01:43.1]} 19. a4 {[%clk 0:01:59]}
19... a6 {[%clk 0:01:38.5]} 20. b4 {[%clk 0:01:59]} 20... Rc2 {[%clk 0:01:20.8]}
21. Nd6 {[%clk 0:01:57.2]} 21... Ba8 {[%clk 0:00:59.8]} 22. Ng5 {[%clk
0:01:51.4]} 22... Bf8 {[%clk 0:00:54.8]} 23. Ngxf7 {[%clk 0:01:12.3]} 23... Bd5
{[%clk 0:00:53.6]} 24. Rd1 {[%clk 0:01:13.4]} 24... Rc6 {[%clk 0:00:39.9]} 25.
b5 {[%clk 0:01:06.6]} 25... axb5 {[%clk 0:00:38.3]} 26. axb5 {[%clk 0:01:07.7]}
26... Rc2 {[%clk 0:00:17.4]} 27. h3 {[%clk 0:01:06]} 27... Nf6 {[%clk
0:00:18.4]} 28. Bd8 {[%clk 0:00:45.5]} 28... Bxf7 {[%clk 0:00:09.7]} 29. Bxf6
{[%clk 0:00:46.4]} 29... Bxd6 {[%clk 0:00:03.6]} 30. Rxd6 {[%clk 0:00:46.7]}
30... h5 {[%clk 0:00:05.5]} 31. Rd8+ {[%clk 0:00:47.2]} 1-0

[Event "*** Titled Tuesday 3|2 Blitz"]
[Site "Chess.com"]
[Date "2016.06.07"]
[Round "1"]
[White "ZivkovicN"]
[Black "DiamondCrusher22"]
[Result "1-0"]
[WhiteElo "2381"]
[BlackElo "1838"]
[TimeControl "180+2"]
[EndTime "11:07:50 PDT"]
[Termination "ZivkovicN won by checkmate"]

1. e4 {[%clk 0:03:01.9]} 1... e5 {[%clk 0:02:59.9]} 2. Nf3 {[%clk 0:03:02.8]}
2... Nc6 {[%clk 0:03:00.2]} 3. Bb5 {[%clk 0:03:03.7]} 3... Nf6 {[%clk 0:03:01]}
4. d3 {[%clk 0:03:04.6]} 4... d6 {[%clk 0:02:55.8]} 5. c3 {[%clk 0:03:05]} 5...
g6 {[%clk 0:02:53.5]} 6. O-O {[%clk 0:03:05.7]} 6... Bg7 {[%clk 0:02:54.5]} 7.
Re1 {[%clk 0:02:56.8]} 7... O-O {[%clk 0:02:54.9]} 8. d4 {[%clk 0:02:57.4]} 8...
Bg4 {[%clk 0:02:41.8]} 9. Bxc6 {[%clk 0:02:47.6]} 9... Bxf3 {[%clk 0:02:15.9]}
10. Qxf3 {[%clk 0:02:43.2]} 10... bxc6 {[%clk 0:02:16.5]} 11. dxe5 {[%clk
0:02:44.5]} 11... dxe5 {[%clk 0:02:17.3]} 12. Be3 {[%clk 0:02:35.7]} 12... Qe7
{[%clk 0:02:05.8]} 13. Na3 {[%clk 0:02:30.5]} 13... Rfd8 {[%clk 0:02:00.1]} 14.
Nc4 {[%clk 0:02:28.8]} 14... Qe6 {[%clk 0:01:53.7]} 15. b3 {[%clk 0:02:23]}
15... Rd3 {[%clk 0:01:32.8]} 16. Rac1 {[%clk 0:02:20.4]} 16... Rad8 {[%clk
0:01:25.3]} 17. Rc2 {[%clk 0:02:06.8]} 17... Ng4 {[%clk 0:01:22]} 18. g3 {[%clk
0:01:55.2]} 18... Bh6 {[%clk 0:01:06.8]} 19. Kg2 {[%clk 0:01:51.2]} 19... Bxe3
{[%clk 0:00:48.6]} 20. Nxe3 {[%clk 0:01:47.8]} 20... Nxe3+ {[%clk 0:00:43.6]}
21. Rxe3 {[%clk 0:01:48.3]} 21... Rd1 {[%clk 0:00:35.8]} 22. Qe2 {[%clk
0:01:42.9]} 22... c5 {[%clk 0:00:28.3]} 23. Qb5 {[%clk 0:01:37.7]} 23... Qg4
{[%clk 0:00:27.5]} 24. h3 {[%clk 0:01:32.9]} 24... Qh5 {[%clk 0:00:24.2]} 25.
Qc4 {[%clk 0:00:40.9]} 25... Ra1 {[%clk 0:00:20.2]} 26. Rd3 {[%clk 0:00:32.9]}
26... Rxd3 {[%clk 0:00:19.9]} 27. Qxd3 {[%clk 0:00:34.8]} 27... Rd1 {[%clk
0:00:20.2]} 28. Rd2 {[%clk 0:00:33.7]} 28... Rxd2 {[%clk 0:00:20.6]} 29. Qxd2
{[%clk 0:00:35.6]} 29... Kg7 {[%clk 0:00:21.3]} 30. Qd5 {[%clk 0:00:35.8]} 30...
Kf6 {[%clk 0:00:21.2]} 31. Qc6+ {[%clk 0:00:36]} 31... Kg7 {[%clk 0:00:20.3]}
32. Qxc7 {[%clk 0:00:37]} 32... Qg5 {[%clk 0:00:20.7]} 33. h4 {[%clk 0:00:36.5]}
33... Qh5 {[%clk 0:00:19.9]} 34. Qxc5 {[%clk 0:00:36.6]} 34... f6 {[%clk
0:00:19.5]} 35. Qe7+ {[%clk 0:00:36.6]} 35... Kh6 {[%clk 0:00:19.9]} 36. Qf8#
{[%clk 0:00:37.3]} 1-0

[Event "*** Titled Tuesday 3|2 Blitz"]
[Site "Chess.com"]
[Date "2016.06.07"]
[Round "1"]
[White "cassoulet"]
[Black "GMBenjaminBok"]
[Result "0-1"]
[WhiteElo "2332"]
[BlackElo "2612"]
[TimeControl "180+2"]
[EndTime "11:08:07 PDT"]
[Termination "GMBenjaminBok won by resignation"]

1. e4 {[%clk 0:02:57.1]} 1... c5 {[%clk 0:02:59.6]} 2. Nf3 {[%clk 0:02:57.7]}
2... d6 {[%clk 0:03:01]} 3. d4 {[%clk 0:02:57.8]} 3... cxd4 {[%clk 0:03:02.9]}
4. Nxd4 {[%clk 0:02:59.5]} 4... Nf6 {[%clk 0:03:04.3]} 5. Nc3 {[%clk 0:03:00.5]}
5... a6 {[%clk 0:03:05.8]} 6. h3 {[%clk 0:03:00]} 6... e6 {[%clk 0:03:03.8]} 7.
g4 {[%clk 0:03:00.2]} 7... Be7 {[%clk 0:03:03.6]} 8. Bg2 {[%clk 0:02:54.5]} 8...
O-O {[%clk 0:03:03.1]} 9. O-O {[%clk 0:02:54.3]} 9... Nfd7 {[%clk 0:03:03.6]}
10. Be3 {[%clk 0:02:53.9]} 10... Nc6 {[%clk 0:03:04.1]} 11. f4 {[%clk 0:02:54]}
11... Qc7 {[%clk 0:03:03]} 12. Nf3 {[%clk 0:02:54.1]} 12... b5 {[%clk
0:03:02.9]} 13. a3 {[%clk 0:02:54.6]} 13... Bb7 {[%clk 0:03:03.8]} 14. Qe2
{[%clk 0:02:55.6]} 14... Na5 {[%clk 0:03:01.5]} 15. Rad1 {[%clk 0:02:54.5]}
15... Nc4 {[%clk 0:02:56.5]} 16. Bc1 {[%clk 0:02:52.6]} 16... Nxa3 {[%clk
0:02:54.9]} 17. e5 {[%clk 0:02:49.2]} 17... b4 {[%clk 0:02:36.9]} 18. exd6
{[%clk 0:02:45.3]} 18... Bxd6 {[%clk 0:02:36.8]} 19. Ne4 {[%clk 0:02:39.8]}
19... Bxe4 {[%clk 0:02:28.2]} 20. Qxe4 {[%clk 0:02:41.7]} 20... Nf6 {[%clk
0:02:28.5]} 21. Qd3 {[%clk 0:02:40.1]} 21... Nb5 {[%clk 0:02:21.6]} 22. Ng5
{[%clk 0:02:31.3]} 22... Rad8 {[%clk 0:02:20.7]} 23. Qe2 {[%clk 0:02:27.7]}
23... h6 {[%clk 0:01:44.1]} 24. Ne4 {[%clk 0:02:25.1]} 24... Nxe4 {[%clk
0:01:44.5]} 25. Bxe4 {[%clk 0:02:26]} 25... Bc5+ {[%clk 0:01:44.4]} 26. Kh1
{[%clk 0:02:24.2]} 26... Rxd1 {[%clk 0:01:45]} 27. Rxd1 {[%clk 0:02:24.5]} 27...
Rd8 {[%clk 0:01:46.1]} 28. Rxd8+ {[%clk 0:02:20]} 28... Qxd8 {[%clk 0:01:48]}
29. Kg2 {[%clk 0:02:21.2]} 29... Qd4 {[%clk 0:01:47.1]} 30. Qe1 {[%clk 0:02:14]}
30... a5 {[%clk 0:01:43.1]} 31. Bd3 {[%clk 0:02:14]} 31... Nd6 {[%clk
0:01:33.6]} 32. b3 {[%clk 0:02:14.8]} 32... Ne8 {[%clk 0:01:12.2]} 33. Kf3
{[%clk 0:02:14.9]} 33... Nf6 {[%clk 0:01:11.8]} 34. Be3 {[%clk 0:02:10.8]} 34...
Qd5+ {[%clk 0:01:06.5]} 35. Kg3 {[%clk 0:02:10.6]} 35... Bxe3 {[%clk 0:01:00.2]}
36. Qxe3 {[%clk 0:02:12.5]} 36... Qh1 {[%clk 0:00:38.9]} 37. Qc5 {[%clk
0:02:07.4]} 37... g6 {[%clk 0:00:33.1]} 38. Qxa5 {[%clk 0:02:06]} 38... Nd5
{[%clk 0:00:32.2]} 39. Qd8+ {[%clk 0:01:58.5]} 39... Kg7 {[%clk 0:00:32.7]} 40.
Qd6 {[%clk 0:02:00.4]} 40... Qg1+ {[%clk 0:00:32.4]} 41. Kf3 {[%clk 0:02:01.3]}
41... Qe3+ {[%clk 0:00:32.6]} 42. Kg2 {[%clk 0:02:00.2]} 42... Nxf4+ {[%clk
0:00:33.7]} 43. Kf1 {[%clk 0:01:57.7]} 43... Qxh3+ {[%clk 0:00:28.2]} 44. Kf2
{[%clk 0:01:58.9]} 44... Nxd3+ {[%clk 0:00:26.8]} 45. cxd3 {[%clk 0:02:00.8]}
45... Qxg4 {[%clk 0:00:27.9]} 46. Qe5+ {[%clk 0:02:01.4]} 46... Kh7 {[%clk
0:00:27.1]} 47. Qc7 {[%clk 0:01:58.9]} 47... Qf5+ {[%clk 0:00:26.2]} 48. Ke3
{[%clk 0:02:00.1]} 48... g5 {[%clk 0:00:26.6]} 49. Qe7 {[%clk 0:02:00.9]} 49...
Qf4+ {[%clk 0:00:26.5]} 50. Ke2 {[%clk 0:02:02.2]} 50... Kg6 {[%clk 0:00:27.8]}
51. Qf8 {[%clk 0:02:02.7]} 51... g4 {[%clk 0:00:26.1]} 52. Qg8+ {[%clk
0:02:03.8]} 52... Kh5 {[%clk 0:00:26.8]} 53. Qg7 {[%clk 0:02:03]} 53... Kh4
{[%clk 0:00:25.4]} 54. Qa1 {[%clk 0:02:01.3]} 54... h5 {[%clk 0:00:25.3]} 55.
Qh1+ {[%clk 0:02:01.2]} 55... Kg5 {[%clk 0:00:25.3]} 56. Qa8 {[%clk 0:02:02]}
56... Qf3+ {[%clk 0:00:25.1]} 57. Qxf3 {[%clk 0:02:01.6]} 57... gxf3+ {[%clk
0:00:27]} 58. Kxf3 {[%clk 0:02:03.5]} 58... Kf5 {[%clk 0:00:28.1]} 0-1

[Event "*** Titled Tuesday 3|2 Blitz"]
[Site "Chess.com"]
[Date "2016.06.07"]
[Round "1"]
[White "Noukii"]
[Black "Aguiar94"]
[Result "1-0"]
[WhiteElo "2655"]
[BlackElo "2348"]
[TimeControl "180+2"]
[EndTime "11:08:25 PDT"]
[Termination "Noukii won by resignation"]

1. d4 {[%clk 0:03:01.9]} 1... Nf6 {[%clk 0:03:00]} 2. c4 {[%clk 0:03:02.3]} 2...
e6 {[%clk 0:03:01.3]} 3. Nc3 {[%clk 0:03:03.4]} 3... Bb4 {[%clk 0:03:02.4]} 4.
Nf3 {[%clk 0:03:04.8]} 4... b6 {[%clk 0:03:01.4]} 5. e3 {[%clk 0:02:54.8]} 5...
Bb7 {[%clk 0:03:00.5]} 6. Bd3 {[%clk 0:02:55.1]} 6... O-O {[%clk 0:03:01.4]} 7.
O-O {[%clk 0:02:55.8]} 7... c5 {[%clk 0:02:59.4]} 8. Na4 {[%clk 0:02:51.1]} 8...
cxd4 {[%clk 0:02:52.9]} 9. a3 {[%clk 0:02:52.2]} 9... Be7 {[%clk 0:02:52.9]} 10.
exd4 {[%clk 0:02:53.6]} 10... d5 {[%clk 0:02:54]} 11. c5 {[%clk 0:02:51]} 11...
Nbd7 {[%clk 0:02:43.2]} 12. Be3 {[%clk 0:02:41.6]} 12... Rc8 {[%clk 0:02:27.5]}
13. b4 {[%clk 0:02:41.7]} 13... Qc7 {[%clk 0:02:22.5]} 14. h3 {[%clk 0:02:38.7]}
14... Ne4 {[%clk 0:02:11.6]} 15. Rc1 {[%clk 0:02:34.6]} 15... Qb8 {[%clk
0:02:10.9]} 16. Rc2 {[%clk 0:02:17.1]} 16... bxc5 {[%clk 0:01:57.2]} 17. Nxc5
{[%clk 0:02:08.2]} 17... Ndxc5 {[%clk 0:01:51.4]} 18. dxc5 {[%clk 0:02:09]}
18... e5 {[%clk 0:01:49.3]} 19. Re1 {[%clk 0:01:37.9]} 19... a5 {[%clk
0:01:40.2]} 20. Qa1 {[%clk 0:01:33.3]} 20... Bf6 {[%clk 0:01:18.4]} 21. Bxe4
{[%clk 0:01:30.2]} 21... dxe4 {[%clk 0:01:18.2]} 22. Nd2 {[%clk 0:01:32.1]}
22... Bd5 {[%clk 0:01:14.8]} 23. Qc3 {[%clk 0:01:30.4]} 23... Qb5 {[%clk
0:01:11.2]} 24. Nc4 {[%clk 0:01:31.3]} 24... axb4 {[%clk 0:01:09.3]} 25. axb4
{[%clk 0:01:32.4]} 25... Rb8 {[%clk 0:01:08.8]} 26. Rb1 {[%clk 0:01:29.7]} 26...
Bxc4 {[%clk 0:00:55.7]} 27. Qxc4 {[%clk 0:01:30.5]} 27... Rfc8 {[%clk
0:00:49.7]} 28. Qxe4 {[%clk 0:01:28.8]} 28... Qa4 {[%clk 0:00:48.6]} 29. Rcb2
{[%clk 0:01:25.9]} 29... Rb5 {[%clk 0:00:46.5]} 30. g4 {[%clk 0:01:14.7]} 30...
h6 {[%clk 0:00:47.9]} 31. Kg2 {[%clk 0:01:14.1]} 31... Rcb8 {[%clk 0:00:46]} 32.
c6 {[%clk 0:01:13.7]} 32... Rc8 {[%clk 0:00:46.6]} 33. Rc1 {[%clk 0:01:11.9]}
33... Qa6 {[%clk 0:00:44.7]} 34. c7 {[%clk 0:00:58.3]} 34... Be7 {[%clk
0:00:42.8]} 35. Qc6 {[%clk 0:00:37.1]} 35... Qb7 {[%clk 0:00:34.4]} 36. Qxb7
{[%clk 0:00:35.7]} 36... Rxb7 {[%clk 0:00:36.3]} 37. b5 {[%clk 0:00:36.5]} 37...
Rbxc7 {[%clk 0:00:36.1]} 38. Rxc7 {[%clk 0:00:37]} 38... Rxc7 {[%clk 0:00:38]}
39. b6 {[%clk 0:00:38.8]} 39... Rb7 {[%clk 0:00:39.5]} 40. Ra2 {[%clk
0:00:40.3]} 40... Bd6 {[%clk 0:00:34.7]} 41. Ra7 {[%clk 0:00:38.5]} 41... Rb8
{[%clk 0:00:35.7]} 42. Rd7 {[%clk 0:00:39.5]} 42... Bf8 {[%clk 0:00:22.5]} 43.
b7 {[%clk 0:00:40.6]} 1-0

[Event "*** Titled Tuesday 3|2 Blitz"]
[Site "Chess.com"]
[Date "2016.06.07"]
[Round "1"]
[White "Semetey"]
[Black "FearlessKing64"]
[Result "1-0"]
[WhiteElo "2452"]
[BlackElo "2076"]
[TimeControl "180+2"]
[EndTime "11:08:27 PDT"]
[Termination "Semetey won on time"]

1. b3 {[%clk 0:03:01.9]} 1... d5 {[%clk 0:03:00.5]} 2. Bb2 {[%clk 0:03:03.5]}
2... Nf6 {[%clk 0:03:02.1]} 3. Nf3 {[%clk 0:03:04.3]} 3... c5 {[%clk 0:03:02.8]}
4. g3 {[%clk 0:03:05.3]} 4... Nc6 {[%clk 0:03:03.9]} 5. Bg2 {[%clk 0:03:06.7]}
5... g6 {[%clk 0:03:02.8]} 6. O-O {[%clk 0:03:07.4]} 6... Bg7 {[%clk 0:03:03.9]}
7. c4 {[%clk 0:03:07]} 7... O-O {[%clk 0:03:04.1]} 8. cxd5 {[%clk 0:03:07.8]}
8... Nxd5 {[%clk 0:03:04.6]} 9. Bxg7 {[%clk 0:03:08.4]} 9... Kxg7 {[%clk
0:03:06.5]} 10. Qc1 {[%clk 0:03:09.7]} 10... b6 {[%clk 0:02:56.5]} 11. Nc3
{[%clk 0:03:05.3]} 11... Nf6 {[%clk 0:02:54.4]} 12. Ne5 {[%clk 0:03:03.3]} 12...
Nxe5 {[%clk 0:02:49.8]} 13. Bxa8 {[%clk 0:03:04]} 13... Bh3 {[%clk 0:02:51.4]}
14. Bg2 {[%clk 0:03:04.7]} 14... Bxg2 {[%clk 0:02:51.7]} 15. Kxg2 {[%clk
0:03:06.1]} 15... h5 {[%clk 0:02:50]} 16. h4 {[%clk 0:03:06]} 16... Qa8+ {[%clk
0:02:43.2]} 17. Kg1 {[%clk 0:03:06.2]} 17... Rd8 {[%clk 0:02:43]} 18. d3 {[%clk
0:03:07.2]} 18... Nc6 {[%clk 0:02:41.1]} 19. Qf4 {[%clk 0:02:58.8]} 19... Nd4
{[%clk 0:02:36.6]} 20. Rac1 {[%clk 0:02:38.5]} 20... Nd5 {[%clk 0:02:30.7]} 21.
Qd2 {[%clk 0:02:39.3]} 21... Nf6 {[%clk 0:02:12.4]} 22. Rfe1 {[%clk 0:02:25.7]}
22... e6 {[%clk 0:02:04.5]} 23. Qf4 {[%clk 0:02:23.8]} 23... Ng4 {[%clk
0:01:22.2]} 24. Qe4 {[%clk 0:02:02.6]} 24... Qb8 {[%clk 0:01:14.9]} 25. Qf4
{[%clk 0:01:46.6]} 25... e5 {[%clk 0:01:13.5]} 26. Qe4 {[%clk 0:01:40.1]} 26...
f5 {[%clk 0:01:11.4]} 27. Qg2 {[%clk 0:01:40.8]} 27... Qd6 {[%clk 0:01:04.6]}
28. e3 {[%clk 0:01:41.1]} 28... Ne6 {[%clk 0:01:01.3]} 29. Red1 {[%clk 0:01:41]}
29... f4 {[%clk 0:00:56.3]} 30. exf4 {[%clk 0:01:40.3]} 30... exf4 {[%clk
0:00:55.9]} 31. Ne2 {[%clk 0:01:41.9]} 31... Rf8 {[%clk 0:00:53]} 32. Nxf4
{[%clk 0:00:57.3]} 32... Rxf4 {[%clk 0:00:38.6]} 33. gxf4 {[%clk 0:00:56.6]}
33... Nxf4 {[%clk 0:00:40]} 34. Qf3 {[%clk 0:00:57.2]} 34... Ne2+ {[%clk
0:00:31.3]} 35. Kf1 {[%clk 0:00:58]} 35... Nxc1 {[%clk 0:00:27.5]} 36. Qb7+
{[%clk 0:00:56.6]} 36... Kh6 {[%clk 0:00:28.1]} 37. Rxc1 {[%clk 0:00:57.9]}
37... Qxd3+ {[%clk 0:00:29]} 38. Kg1 {[%clk 0:00:57.7]} 38... Nxf2 {[%clk
0:00:21.7]} 39. Qg2 {[%clk 0:00:49.9]} 39... Nh3+ {[%clk 0:00:18.5]} 40. Kh2
{[%clk 0:00:51.2]} 40... Qe3 {[%clk 0:00:06]} 41. Rf1 {[%clk 0:00:48.4]} 1-0

[Event "*** Titled Tuesday 3|2 Blitz"]
[Site "Chess.com"]
[Date "2016.06.07"]
[Round "1"]
[White "jup1978"]
[Black "SmoothAsAHedgehog"]
[Result "1-0"]
[WhiteElo "2207"]
[BlackElo "2498"]
[TimeControl "180+2"]
[EndTime "11:08:32 PDT"]
[Termination "jup1978 won by resignation"]

1. e4 {[%clk 0:02:57.6]} 1... e5 {[%clk 0:03:00.1]} 2. Nf3 {[%clk 0:02:56.1]}
2... Nc6 {[%clk 0:03:01.2]} 3. Bb5 {[%clk 0:02:57.4]} 3... a6 {[%clk 0:03:02.1]}
4. Ba4 {[%clk 0:02:58.5]} 4... Nf6 {[%clk 0:03:02.9]} 5. d3 {[%clk 0:02:59.5]}
5... d6 {[%clk 0:03:03.5]} 6. c3 {[%clk 0:02:59.8]} 6... g6 {[%clk 0:03:04.6]}
7. O-O {[%clk 0:03:00.7]} 7... Bg7 {[%clk 0:03:05.7]} 8. Re1 {[%clk 0:03:01.9]}
8... O-O {[%clk 0:03:06.8]} 9. Nbd2 {[%clk 0:03:03.5]} 9... Nd7 {[%clk
0:03:07.6]} 10. Nf1 {[%clk 0:03:04.1]} 10... Nc5 {[%clk 0:03:06.1]} 11. Bc2
{[%clk 0:03:05]} 11... Ne6 {[%clk 0:02:40.7]} 12. Ng3 {[%clk 0:03:03.2]} 12...
h6 {[%clk 0:02:41.4]} 13. Be3 {[%clk 0:02:56.8]} 13... Qf6 {[%clk 0:02:41.9]}
14. Ne2 {[%clk 0:02:48.5]} 14... Bd7 {[%clk 0:02:36.5]} 15. d4 {[%clk
0:02:49.2]} 15... Nf4 {[%clk 0:02:21.8]} 16. dxe5 {[%clk 0:02:44.3]} 16... Nxe2+
{[%clk 0:02:18.8]} 17. Rxe2 {[%clk 0:02:44.5]} 17... Nxe5 {[%clk 0:02:16.2]} 18.
Nxe5 {[%clk 0:02:45.5]} 18... Qxe5 {[%clk 0:02:18.1]} 19. Bd4 {[%clk 0:02:43.9]}
19... Qh5 {[%clk 0:02:11.8]} 20. Bxg7 {[%clk 0:02:43]} 20... Kxg7 {[%clk
0:02:13.7]} 21. Rd2 {[%clk 0:02:41.6]} 21... Qxd1+ {[%clk 0:02:13.4]} 22. Raxd1
{[%clk 0:02:43.5]} 22... Rfe8 {[%clk 0:02:15.3]} 23. f3 {[%clk 0:02:44.6]} 23...
Bc6 {[%clk 0:02:16.5]} 24. Kf2 {[%clk 0:02:44]} 24... b5 {[%clk 0:02:17.7]} 25.
Bb3 {[%clk 0:02:45]} 25... a5 {[%clk 0:02:16.9]} 26. Bd5 {[%clk 0:02:45.7]}
26... Bxd5 {[%clk 0:02:16.8]} 27. Rxd5 {[%clk 0:02:47.6]} 27... Rab8 {[%clk
0:02:17]} 28. R1d2 {[%clk 0:02:48.7]} 28... Rb6 {[%clk 0:02:16.9]} 29. a4 {[%clk
0:02:48.5]} 29... Reb8 {[%clk 0:02:08.9]} 30. axb5 {[%clk 0:02:45]} 30... Rxb5
{[%clk 0:02:10.8]} 31. Rxb5 {[%clk 0:02:46.4]} 31... Rxb5 {[%clk 0:02:12.7]} 32.
Rc2 {[%clk 0:02:44.8]} 32... Kf6 {[%clk 0:02:13.5]} 33. b4 {[%clk 0:02:45]}
33... axb4 {[%clk 0:02:10.7]} 34. cxb4 {[%clk 0:02:46.9]} 34... Rb7 {[%clk
0:02:10.8]} 35. Ke3 {[%clk 0:02:38.9]} 35... Ke6 {[%clk 0:02:07.8]} 36. Rc4
{[%clk 0:02:39.1]} 36... Kd7 {[%clk 0:02:08.4]} 37. h4 {[%clk 0:02:40.2]} 37...
Ra7 {[%clk 0:02:08.7]} 38. g4 {[%clk 0:02:40.8]} 38... Rb7 {[%clk 0:01:55.7]}
39. h5 {[%clk 0:02:32.2]} 39... g5 {[%clk 0:01:56.5]} 40. f4 {[%clk 0:02:33]}
40... Rb5 {[%clk 0:01:54.3]} 41. fxg5 {[%clk 0:02:33.2]} 41... Rxg5 {[%clk
0:01:54.9]} 42. Kf4 {[%clk 0:02:34.6]} 42... c6 {[%clk 0:01:53.8]} 43. Rd4
{[%clk 0:02:31.8]} 43... Kc7 {[%clk 0:01:54.4]} 44. Rc4 {[%clk 0:02:20.9]} 44...
Kb6 {[%clk 0:01:52.9]} 45. Rd4 {[%clk 0:02:22]} 45... Kc7 {[%clk 0:01:52.1]} 46.
Rc4 {[%clk 0:02:23]} 46... f6 {[%clk 0:01:53.3]} 47. Rd4 {[%clk 0:02:22.3]}
47... Re5 {[%clk 0:01:53.9]} 48. Rc4 {[%clk 0:02:22.1]} 48... Kb6 {[%clk
0:01:50.9]} 49. Rd4 {[%clk 0:02:23.3]} 49... d5 {[%clk 0:01:51.2]} 50. exd5
{[%clk 0:02:21.5]} 50... cxd5 {[%clk 0:01:52.2]} 51. Kf3 {[%clk 0:02:17.6]}
51... Kb5 {[%clk 0:01:49.1]} 52. Kf4 {[%clk 0:02:17]} 52... Ka4 {[%clk
0:01:45.4]} 53. Kf3 {[%clk 0:02:15.8]} 53... Kb3 {[%clk 0:01:42.2]} 54. b5
{[%clk 0:02:13.8]} 54... Kc3 {[%clk 0:01:42.7]} 55. Rf4 {[%clk 0:02:12.6]} 55...
Re6 {[%clk 0:01:43.8]} 56. Rf5 {[%clk 0:02:05.4]} 56... d4 {[%clk 0:01:41]} 57.
Rc5+ {[%clk 0:02:07.3]} 57... Kd2 {[%clk 0:01:39.8]} 58. Rc6 {[%clk 0:02:06.2]}
58... Re3+ {[%clk 0:01:40.7]} 59. Kf4 {[%clk 0:02:06.8]} 59... Rb3 {[%clk
0:01:40.4]} 60. Rxf6 {[%clk 0:02:07.5]} 60... Rxb5 {[%clk 0:01:40.8]} 61. Rxh6
{[%clk 0:02:08.9]} 61... d3 {[%clk 0:01:42.5]} 62. Rd6 {[%clk 0:02:09.8]} 62...
Ke2 {[%clk 0:01:42.8]} 63. h6 {[%clk 0:02:10.6]} 63... Rb4+ {[%clk 0:01:44]} 64.
Kf5 {[%clk 0:02:11.5]} 64... Rb5+ {[%clk 0:01:44.6]} 65. Kf6 {[%clk 0:02:10.9]}
65... d2 {[%clk 0:01:15.8]} 66. Rxd2+ {[%clk 0:02:10.8]} 66... Kxd2 {[%clk
0:01:17.7]} 67. h7 {[%clk 0:02:11.9]} 67... Rb8 {[%clk 0:01:17.8]} 68. g5 {[%clk
0:02:10.4]} 68... Ke3 {[%clk 0:01:18.9]} 69. g6 {[%clk 0:02:11.7]} 69... Rb6+
{[%clk 0:01:20.5]} 70. Kf5 {[%clk 0:02:11.2]} 70... Rb5+ {[%clk 0:01:21.4]} 71.
Kg4 {[%clk 0:02:11.7]} 71... Rb4+ {[%clk 0:01:22.6]} 72. Kg3 {[%clk 0:02:12.5]}
72... Rb1 {[%clk 0:01:05.2]} 73. h8=Q {[%clk 0:02:11.7]} 73... Rg1+ {[%clk
0:01:05.4]} 74. Kh2 {[%clk 0:02:12.9]} 74... Rxg6 {[%clk 0:01:06.3]} 75. Qe8+
{[%clk 0:02:14]} 1-0